bitfinex/quotes_ETHUSD_20250318
["timestamp","ask_amount","ask_price","bid_price","bid_amount"]
[1742313990657,4.73598784,1888.9,1888.7,5.29449]
[1742313990853,4.73598784,1888.9,1888.6,40.29491]
[1742313991192,4.73598784,1888.7,1888.6,35.0]
[1742313991377,4.73598784,1888.7,1888.6,5.29492]
[1742313995279,5.54548784,1888.7,1888.6,5.29492]
[1742313995593,5.54548784,1888.7,1888.6,40.29492]
[1742313995788,10.49924,1888.6,1888.2,11.4359328]
[1742313995991,10.49924,1888.6,1888.3,8.29567]
[1742313995992,4.73598784,1888.4,1888.3,8.29567]
[1742313996193,4.73598784,1888.4,1888.3,5.29567]
[1742313996380,4.73598784,1888.4,1888.2,46.4359328]
[1742313996697,5.51448784,1888.4,1888.2,16.7318528]
[1742313996993,5.51448784,1888.4,1888.3,5.29576]
[1742313998576,4.73598784,1888.4,1888.3,5.29576]
[1742313999094,4.73598784,1888.4,1888.2,11.4358728]
[1742313999265,4.73598784,1888.4,1888.2,6.1399928]
[1742313999462,6.07226,1888.3,1888.2,6.1399928]
[1742313999669,11.88826,1888.3,1888.2,6.1399928]
[1742314000668,6.5925,1888.3,1888.2,6.1399928]
[1742314000867,6.0425,1888.3,1888.2,6.1399928]
[1742314001171,10.00298784,1888.4,1888.3,5.29576]
[1742314001372,5.67260451,1888.4,1888.3,5.29576]
[1742314001576,0.40560451,1888.4,1888.3,5.29576]
[1742314001762,4.73598784,1888.4,1888.3,5.29576]
[1742314001970,4.73598784,1888.4,1888.2,11.4359128]
[1742314002164,4.73598784,1888.4,1888.2,16.7318628]
[1742314002391,5.99418662,1888.4,1888.2,16.7318328]
[1742314002775,5.99418662,1888.4,1888.3,5.29576]
[1742314004206,5.52058784,1888.4,1888.3,5.29576]
[1742314004699,5.13900381,1888.4,1888.3,5.29576]
[1742314005099,5.15615516,1888.4,1888.3,5.29576]
[1742314007107,4.75313919,1888.4,1888.3,5.29576]
[1742314007292,4.75313919,1888.4,1888.3,6.11066]
[1742314007685,4.75313919,1888.4,1888.3,7.86531728]
[1742314007886,4.75313919,1888.5,1888.3,13.16107728]
[1742314008206,4.75313919,1888.8,1888.5,5.29509]
[1742314008414,5.15446126,1888.8,1888.5,10.59017]
[1742314008594,5.15446126,1888.8,1888.5,10.59014]
[1742314008787,0.51544613,1888.7,1888.6,5.29492]
[1742314009394,4.75313919,1888.7,1888.6,5.29481]
[1742314010103,4.75313919,1888.7,1888.5,5.29518]
[1742314010303,4.75313919,1888.7,1888.5,10.5902]
[1742314010511,4.75313919,1888.7,1888.6,5.29492]
[1742314010807,4.75313919,1888.7,1888.5,10.59008]
[1742314010999,4.75313919,1888.7,1888.6,5.29492]
[1742314011873,5.15446126,1888.8,1888.7,5.29464]
[1742314013099,5.15446126,1888.8,1888.6,10.58974]
[1742314013415,4.75313919,1888.7,1888.6,5.29482]
[1742314013984,4.75313919,1888.7,1888.6,5.29492]
[1742314014219,5.74603739,1888.8,1888.6,5.29492]
[1742314014714,5.74603739,1888.8,1888.6,10.58973]
[1742314015014,5.74603739,1888.8,1888.6,5.29481]
[1742314015715,5.74603739,1888.8,1888.7,5.29464]
[1742314015904,5.15446126,1888.8,1888.7,5.29464]
[1742314019120,0.8288,1889.4,1888.9,0.8148]
[1742314019423,6.087,1889.5,1889.3,5.29296]
[1742314019611,0.39561708,1889.5,1889.4,5.29268]
[1742314019806,6.35427845,1889.7,1889.4,10.58517]
[1742314020006,7.57386629,1889.7,1889.4,10.58517]
[1742314020311,7.30658784,1889.7,1889.5,5.2924]
[1742314020507,4.75313919,1889.6,1889.5,5.2924]
[1742314022199,9.50627838,1889.6,1889.4,5.29249]
[1742314022403,4.75313919,1889.5,1889.4,5.29249]
[1742314022803,5.14375298,1889.5,1889.4,5.29249]
[1742314023180,5.14375298,1889.5,1889.2,5.29303]
[1742314023421,10.04627919,1889.3,1888.9,10.58791]
[1742314023609,5.265,1889.3,1889.0,5.29369]
[1742314023927,5.265,1889.3,1888.9,5.29405]
[1742314023928,0.8151,1889.1,1888.9,5.29398]
[1742314024133,6.062,1889.3,1889.0,10.58739]
[1742314024293,4.75313919,1889.1,1889.0,5.29359]
[1742314025422,4.75313919,1889.1,1888.8,8.29432]
[1742314025626,4.75313919,1888.9,1888.7,11.4344728]
[1742314025796,0.8118,1889.0,1888.8,5.29436]
[1742314025997,0.55,1889.1,1888.9,5.29408]
[1742314026499,1.212175,1889.1,1888.9,5.29408]
[1742314026844,4.75313919,1889.0,1888.9,10.58803]
[1742314027065,5.14470832,1889.0,1888.9,10.58803]
[1742314027619,0.39156913,1889.0,1888.9,10.58803]
[1742314027825,4.75313919,1889.3,1888.9,0.7801]
[1742314028063,0.39061379,1889.5,1889.2,5.29324]
[1742314028237,10.78663919,1889.6,1889.2,5.29324]
[1742314028560,10.78663919,1889.6,1889.2,5.29323]
[1742314028561,5.29249,1889.5,1889.2,5.29323]
[1742314028865,12.84458631,1889.6,1889.2,10.58625]
[1742314029049,5.264,1889.5,1889.3,5.29294]
[1742314029223,4.75313919,1889.4,1889.3,5.29294]
[1742314029856,4.75313919,1889.4,1889.3,6.05334]
[1742314030035,4.75313919,1889.4,1889.3,7.187976]
[1742314030439,4.75313919,1889.4,1889.3,6.427576]
[1742314031374,4.75313919,1889.4,1889.2,5.29302]
[1742314031558,4.75313919,1889.3,1889.1,5.29343]
[1742314031744,4.75313919,1889.2,1889.1,10.5867]
[1742314032126,4.75313919,1889.2,1889.1,5.29327]
[1742314033979,0.8175,1889.4,1889.0,11.4336828]
[1742314033980,5.264,1889.5,1889.3,5.29296]
[1742314034281,4.75313919,1889.4,1889.3,10.58592]
[1742314034572,4.75313919,1889.4,1889.3,5.29296]
[1742314036668,4.75313919,1889.4,1889.2,5.29312]
[1742314036891,4.75313919,1889.3,1889.2,5.29312]
[1742314037829,5.52043919,1889.3,1889.1,5.2934]
[1742314038028,4.75313919,1889.2,1889.0,16.7274328]
[1742314038329,1.24261392,1889.3,1888.5,6.1399928]
[1742314038330,2.87927,1889.0,1888.5,6.1399928]
[1742314038534,4.75313919,1888.6,1888.5,11.4351028]
[1742314039434,0.7722,1889.0,1888.5,11.4351028]
[1742314039435,4.75313919,1888.7,1888.6,5.29492]
[1742314040328,4.75313919,1888.7,1888.5,6.1399928]
[1742314040329,5.70376703,1888.7,1888.5,6.1399928]
[1742314040570,5.50663919,1888.6,1888.5,6.1399928]
[1742314040740,5.89890376,1888.6,1888.5,5.2952]
[1742314041274,5.89890376,1888.6,1888.4,5.2953]
[1742314041584,4.75313919,1888.5,1888.4,5.2953]
[1742314042031,0.39226457,1888.6,1888.5,5.2952]
[1742314042234,6.0862,1888.9,1888.7,5.29463]
[1742314042435,0.8232,1888.9,1888.7,10.58909]
[1742314042650,6.0862,1888.9,1888.8,5.29436]
[1742314043054,5.263,1888.9,1888.8,5.29436]
[1742314043238,0.40603801,1888.9,1888.8,5.29436]
[1742314043564,0.8196,1889.3,1889.1,5.29342]
[1742314043930,0.8196,1889.3,1889.0,5.29369]
[1742314044127,0.8196,1889.3,1889.0,5.29361]
[1742314044741,0.8196,1889.3,1889.0,10.58727]
[1742314044967,0.8196,1889.3,1889.0,5.29361]
[1742314045168,4.73589778,1889.1,1889.0,5.29361]
[1742314045369,5.14271523,1889.1,1889.0,5.29361]
[1742314047365,5.14271523,1889.1,1888.9,5.29405]
[1742314047667,5.14271523,1889.1,1888.8,11.4343228]
[1742314047962,5.14271523,1889.1,1888.8,6.1399928]
[1742314047963,5.53729778,1888.9,1888.8,6.1399928]
[1742314048267,5.53729778,1888.9,1888.7,10.58904]
[1742314048452,5.53729778,1888.9,1888.7,5.29451]
[1742314049260,7.14670956,1888.9,1888.5,11.4351528]
[1742314049468,4.73589778,1888.6,1888.5,6.1399928]
[1742314049670,4.73589778,1888.6,1888.5,11.4351928]
[1742314050265,4.73589778,1888.9,1888.7,5.29443]
[1742314050763,4.73589778,1888.9,1888.7,5.29451]
[1742314050931,4.73589778,1888.9,1888.7,10.58895]
[1742314051466,4.73589778,1888.9,1888.8,5.29436]
[1742314052939,4.73589778,1888.9,1888.7,5.29463]
[1742314053180,4.73589778,1888.9,1888.7,10.58917]
[1742314054170,4.73589778,1888.9,1888.8,5.29436]
[1742314054539,4.73589778,1888.9,1888.7,10.58904]
[1742314055372,4.73589778,1888.9,1888.8,5.29436]
[1742314055864,1.18031745,1889.1,1889.0,5.2938]
[1742314055865,10.40571523,1889.1,1889.0,5.2938]
[1742314056242,10.40571523,1889.1,1888.9,5.29407]
[1742314056451,5.14271523,1889.1,1888.9,5.29407]
[1742314056742,5.14271523,1889.1,1888.6,6.0474]
[1742314056948,5.14271523,1889.1,1888.8,5.29436]
[1742314056949,4.73589778,1888.9,1888.8,5.29436]
[1742314057946,5.12950316,1889.1,1889.0,5.29357]
[1742314059871,4.73589778,1889.3,1889.2,5.29324]
[1742314061943,5.1415259,1889.3,1889.2,5.29324]
[1742314063277,5.1415259,1889.3,1889.1,10.58682]
[1742314063475,5.1415259,1889.3,1889.2,5.29324]
[1742314063644,0.40562812,1889.3,1889.2,5.29324]
[1742314063850,4.73589778,1889.4,1889.3,5.29296]
[1742314065280,5.14074903,1889.4,1889.3,5.29296]
[1742314065454,5.14074903,1889.4,1889.2,11.4331128]
[1742314065455,0.7881,1889.3,1889.2,5.15253518]
[1742314065652,11.37984836,1889.3,1889.2,2.82563518]
[1742314065875,5.29335,1889.2,1888.6,2.82563518]
[1742314066072,5.261,1889.1,1889.0,5.2938]
[1742314066245,10.00978836,1889.1,1889.0,5.2938]
[1742314068562,4.74878836,1889.1,1889.0,5.2938]
[1742314069281,5.2992972,1889.1,1888.9,5.29396]
[1742314069580,5.2992972,1889.1,1888.9,5.29393]
[1742314070361,5.2992972,1889.1,1888.9,5.29388]
[1742314070982,5.29381,1889.0,1888.7,40.29461]
[1742314071147,4.74878836,1888.9,1888.7,5.29461]
[1742314071553,4.74878836,1888.9,1888.6,8.12044518]
[1742314071774,4.74878836,1888.7,1888.5,40.2951]
[1742314071988,4.74878836,1888.6,1888.5,40.2951]
[1742314072186,4.74878836,1888.6,1888.5,5.2951]
[1742314072881,5.15068927,1888.6,1888.5,5.2951]
[1742314073378,5.15068927,1888.6,1888.5,5.2952]
[1742314073581,5.15068927,1888.6,1888.4,5.29536]
[1742314073783,4.74878836,1888.5,1888.4,5.29535]
[1742314073979,5.26385729,1888.5,1888.1,0.7984]
[1742314074224,4.74878836,1888.2,1887.9,43.92074518]
[1742314074509,9.49757672,1888.0,1887.8,5.29701]
[1742314074678,5.1420077,1888.0,1887.9,5.29689]
[1742314075001,5.1420077,1888.0,1887.7,5.82563518]
[1742314075002,15.98221606,1888.0,1887.7,2.82563518]
[1742314075302,4.74878836,1887.8,1887.7,8.12308518]
[1742314077009,4.74878836,1887.8,1887.7,2.82563518]
[1742314077204,4.74309161,1887.8,1887.7,8.12308518]
[1742314077877,4.74309161,1887.8,1887.6,5.29755]
[1742314078072,10.47940077,1887.8,1887.5,35.0]
[1742314078278,4.534476,1887.5,1887.4,5.29827]
[1742314078511,4.74309161,1887.4,1887.3,5.29839]
[1742314078679,4.74309161,1887.4,1887.2,5.29874]
[1742314079005,4.74309161,1887.4,1887.2,10.5974]
[1742314079202,4.74309161,1887.4,1887.3,5.29857]
[1742314079613,4.74309161,1887.4,1887.1,8.94235518]
[1742314079832,4.74309161,1887.2,1887.1,8.12475518]
[1742314081087,4.74309161,1887.2,1887.0,45.5986]
[1742314081280,4.74309161,1887.2,1886.9,8.12527518]
[1742314081514,4.74309161,1887.2,1886.9,2.82563518]
[1742314081515,4.74309161,1887.0,1886.9,2.82563518]
[1742314081822,10.00609161,1887.0,1886.9,8.12532518]
[1742314081996,10.00609161,1887.0,1886.9,8.88492518]
[1742314082188,4.74309161,1887.0,1886.9,8.88492518]
[1742314082618,0.55,1887.6,1887.1,5.29913]
[1742314082619,4.74309161,1887.2,1887.1,5.29913]
[1742314082817,4.74309161,1887.2,1887.1,8.12476518]
[1742314083322,5.74370077,1887.2,1887.1,2.82563518]
[1742314083522,5.74370077,1887.2,1887.1,8.12476518]
[1742314083919,5.74370077,1887.2,1887.1,2.82563518]
[1742314084224,11.80775077,1887.2,1887.1,2.82563518]
[1742314084422,12.35775077,1887.2,1887.1,2.82563518]
[1742314084620,4.74309161,1886.8,1886.7,5.3]
[1742314084792,5.13394278,1886.8,1886.7,5.3]
[1742314085519,5.13394278,1886.8,1886.6,5.30041]
[1742314085731,5.13394278,1886.8,1886.7,5.30025]
[1742314086120,5.13394278,1886.8,1886.6,5.30041]
[1742314086326,6.17373706,1886.8,1886.6,5.30043]
[1742314086723,6.17373706,1886.8,1886.7,5.30025]
[1742314086921,5.13394278,1886.8,1886.7,5.30025]
[1742314087123,5.13394278,1886.8,1886.6,5.30039]
[1742314087331,5.13394278,1886.8,1886.6,10.60077]
[1742314087623,5.13394278,1886.8,1886.7,5.30025]
[1742314087827,5.13394278,1886.8,1886.6,5.30038]
[1742314088120,5.13394278,1886.8,1886.5,43.30068]
[1742314088423,4.74309161,1886.7,1886.6,5.30054]
[1742314090239,4.74309161,1886.7,1886.3,11.44126]
[1742314090240,5.54039161,1886.7,1886.3,11.44126]
[1742314090525,0.7973,1886.7,1886.4,5.3009]
[1742314090749,10.56555,1886.6,1886.3,5.30136]
[1742314090927,1.056555,1886.5,1886.3,5.30136]
[1742314091129,1.056555,1886.5,1886.0,0.7776]
[1742314091344,5.265,1886.6,1886.2,5.30155]
[1742314091508,4.74309161,1886.3,1886.2,5.30155]
[1742314091703,5.14263407,1886.3,1886.2,5.30155]
[1742314092017,5.265,1886.6,1886.2,5.30155]
[1742314092018,4.74309161,1886.5,1886.4,5.3011]
[1742314092206,4.74309161,1886.5,1886.3,5.30128]
[1742314092407,4.74309161,1886.5,1886.4,5.3011]
[1742314092828,10.04392161,1886.5,1886.3,3.0]
[1742314093028,10.04392161,1886.5,1886.1,35.0]
[1742314093029,9.05808,1886.3,1886.1,35.0]
[1742314093236,4.74309161,1886.2,1886.0,5.3021]
[1742314093539,4.74309161,1886.1,1886.0,5.3021]
[1742314094046,4.74309161,1886.1,1885.9,40.3025]
[1742314094252,4.74309161,1886.1,1885.9,5.30238]
[1742314094549,6.21800993,1886.1,1885.9,5.30248]
[1742314095034,4.74309161,1886.1,1885.9,5.30237]
[1742314095205,4.74309161,1886.1,1885.8,11.44269]
[1742314095406,4.74309161,1885.9,1885.8,14.44269]
[1742314095601,4.74309161,1885.9,1885.8,8.30269]
[1742314095837,4.74309161,1885.9,1885.8,43.30269]
[1742314097233,4.74309161,1885.9,1885.6,5.30315]
[1742314097433,5.30224,1886.0,1885.7,5.30291]
[1742314097636,0.530224,1885.9,1885.7,5.30291]
[1742314098202,0.530224,1885.9,1885.6,43.3032]
[1742314098536,0.530224,1885.9,1885.6,48.60641]
[1742314098537,4.74309161,1885.7,1885.6,48.60641]
[1742314098742,4.74309161,1885.7,1885.6,45.60641]
[1742314098917,4.74309161,1885.7,1885.6,40.3032]
[1742314099125,4.76757188,1885.7,1885.6,45.60635]
[1742314100470,9.94128526,1885.7,1885.6,40.30315]
[1742314100739,5.17371338,1885.7,1885.6,40.30315]
[1742314100905,9.94128526,1885.7,1885.6,40.30315]
[1742314101104,9.94128526,1885.7,1885.6,35.0]
[1742314101105,11.46201379,1885.7,1885.6,35.0]
[1742314101305,12.22001379,1885.7,1885.4,11.44375]
[1742314101534,4.76757188,1885.5,1885.4,5.30375]
[1742314101939,4.76757188,1885.5,1885.4,40.30375]
[1742314102341,4.76757188,1885.5,1885.4,5.30375]
[1742314102655,5.72108626,1885.5,1885.4,5.30375]
[1742314102815,4.76757188,1885.5,1885.4,5.30375]
[1742314103144,4.76757188,1885.5,1885.2,5.30436]
[1742314103439,4.76757188,1885.6,1885.3,10.60824]
[1742314103638,4.76757188,1885.6,1885.3,5.30401]
[1742314103807,4.76757188,1885.6,1885.3,10.60798]
[1742314104011,5.51281607,1885.6,1885.3,10.60806]
[1742314104321,5.51281607,1885.6,1885.4,5.30385]
[1742314104514,4.76757188,1885.5,1885.4,5.30385]
[1742314104714,4.76757188,1885.5,1885.4,6.10275]
[1742314106166,4.76757188,1885.5,1885.4,12.24275]
[1742314106756,4.76757188,1885.5,1885.4,11.44385]
[1742314108424,0.4061415,1885.7,1885.6,5.30335]
[1742314108760,4.76757188,1885.7,1885.6,5.30335]
[1742314109362,5.16796649,1885.7,1885.6,5.30335]
[1742314110953,0.40039461,1885.7,1885.6,6.05955]
[1742314111131,4.76757188,1885.7,1885.6,6.05955]
[1742314112234,0.7591,1886.1,1885.7,5.30295]
[1742314112540,0.7591,1886.1,1886.0,5.30222]
[1742314112743,10.79367188,1886.1,1885.9,3.0]
[1742314113037,6.0261,1886.1,1885.7,8.30284]
[1742314113273,6.0261,1886.1,1885.7,8.30306]
[1742314113274,0.60261,1886.0,1885.7,8.30306]
[1742314113552,5.55777188,1885.8,1885.7,8.30306]
[1742314114451,5.55777188,1885.8,1885.7,3.0]
[1742314115025,5.55777188,1885.8,1885.7,8.30307]
[1742314115755,5.55777188,1885.8,1885.7,3.0]
[1742314115955,6.15369224,1885.8,1885.7,3.0]
[1742314116368,6.15369224,1885.8,1885.5,5.30352]
[1742314116537,9.53514376,1885.6,1885.4,5.30387]
[1742314116862,5.59137188,1885.5,1885.4,3.0]
[1742314117437,5.59137188,1885.5,1885.4,8.30391]
[1742314117980,5.59137188,1885.5,1885.4,5.30391]
[1742314118139,5.59137188,1885.5,1885.3,5.30409]
[1742314118339,4.76757188,1885.4,1885.3,8.30409]
[1742314118555,5.15752879,1885.4,1885.3,8.30409]
[1742314118754,0.8054,1885.3,1885.2,5.30444]
[1742314119063,5.57297188,1885.3,1885.2,5.30444]
[1742314119437,10.84097188,1885.3,1885.2,5.30444]
[1742314119637,10.03557188,1885.3,1885.2,5.30444]
[1742314120369,10.03557188,1885.3,1885.1,12.26934]
[1742314120370,10.03557188,1885.3,1885.1,0.013]
[1742314120571,4.76757188,1885.2,1885.1,8.3176]
[1742314120748,4.76757188,1885.2,1885.1,5.31775]
[1742314121756,6.54012907,1885.2,1885.1,5.31775]
[1742314122236,6.54012907,1885.2,1884.7,5.30571]
[1742314122237,0.769,1885.1,1884.7,5.30571]
[1742314122437,0.55,1885.0,1884.8,5.30559]
[1742314122671,5.267,1884.9,1884.7,5.30571]
[1742314122842,5.8487,1884.9,1884.7,5.30571]
[1742314123038,5.8487,1884.9,1884.8,5.3056]
[1742314123240,5.8487,1884.9,1884.5,0.7553]
[1742314123566,0.7641,1884.8,1884.7,5.30572]
[1742314123767,4.76757188,1884.8,1884.7,5.30572]
[1742314124073,5.268,1885.2,1885.1,5.30475]
[1742314124377,10.03557188,1885.2,1885.1,5.30475]
[1742314125148,5.268,1885.2,1885.1,5.30475]
[1742314125339,10.03557188,1885.2,1885.1,5.30475]
[1742314126175,5.617049,1885.0,1884.8,10.61107]
[1742314126351,0.6380149,1885.0,1884.9,5.30532]
[1742314126552,0.7631,1885.1,1884.9,5.30532]
[1742314126853,0.7631,1885.1,1884.7,16.75155]
[1742314127054,4.76757188,1884.8,1884.7,10.61155]
[1742314127947,4.76757188,1884.8,1884.7,5.30574]
[1742314128304,16.03990095,1884.8,1884.3,6.14]
[1742314128476,0.76,1884.7,1884.4,5.30655]
[1742314128777,0.76,1884.7,1884.5,10.61273]
[1742314128943,0.76,1884.7,1884.5,5.30631]
[1742314129143,1.88723291,1884.7,1884.5,10.61261]
[1742314129341,4.76757188,1884.6,1884.5,5.3063]
[1742314129550,1.88723291,1884.7,1884.5,5.3063]
[1742314129551,1.88723291,1884.7,1884.6,5.30616]
[1742314129750,2.979,1884.6,1884.5,5.30632]
[1742314129957,4.76757188,1884.6,1884.4,5.30661]
[1742314130170,0.76,1884.7,1884.4,5.30661]
[1742314130171,4.76757188,1884.5,1884.4,5.30661]
[1742314130851,5.16284651,1884.5,1884.4,5.30661]
[1742314131256,0.39527463,1884.5,1884.4,6.13351]
[1742314131449,10.03657188,1884.6,1884.5,5.30644]
[1742314132662,10.79657188,1884.6,1884.5,5.30644]
[1742314132981,7.10865719,1884.6,1884.5,5.30644]
[1742314133181,11.87622907,1884.6,1884.5,5.30644]
[1742314133384,10.03657188,1884.6,1884.5,5.30644]
[1742314133748,10.43424138,1884.6,1884.5,5.30644]
[1742314135981,0.3976695,1884.6,1884.5,5.30644]
[1742314136287,5.269,1884.7,1884.6,5.30616]
[1742314136452,10.56347188,1884.7,1884.6,5.30616]
[1742314136653,11.32507188,1884.7,1884.6,5.30616]
[1742314137377,5.17426209,1884.7,1884.6,5.30616]
[1742314141072,0.40669021,1884.7,1884.6,6.10176]
[1742314141274,5.269,1884.8,1884.7,5.30588]
[1742314141808,5.65846213,1884.8,1884.7,5.30588]
[1742314142364,10.42603401,1884.8,1884.7,5.30588]
[1742314143091,0.38946213,1884.8,1884.7,5.30588]
[1742314143331,4.76757188,1885.2,1884.9,5.30522]
[1742314143606,10.03657188,1885.2,1885.1,5.30475]
[1742314143776,10.4379792,1885.2,1885.1,5.30475]
[1742314145895,0.787,1885.0,1884.9,5.30532]
[1742314146102,5.55457188,1885.0,1884.9,5.30532]
[1742314148000,1.81279792,1885.1,1885.0,5.30503]
[1742314148204,11.8483698,1885.1,1885.0,5.30503]
[1742314148895,0.40140732,1885.2,1885.1,5.30475]
[1742314149075,4.76757188,1885.2,1885.1,5.30475]
[1742314149573,5.31757188,1885.2,1885.1,5.30475]
[1742314151907,10.03557188,1885.2,1885.1,5.30475]
[1742314152475,10.43021,1885.2,1885.1,5.30475]
[1742314155206,10.425131,1885.2,1885.1,5.30475]
[1742314155535,11.23471,1885.2,1885.1,5.30475]
[1742314158522,10.43021,1885.2,1885.1,5.30475]
[1742314158714,5.16221,1885.2,1885.1,5.30475]
[1742314158917,10.43021,1885.2,1885.1,5.30475]
[1742314159616,10.43021,1885.2,1885.0,5.30491]
[1742314159617,10.98021,1885.2,1885.0,5.30491]
[1742314159819,0.7535,1885.1,1885.0,5.30491]
[1742314161726,10.43021,1885.2,1885.1,5.30475]
[1742314161934,5.16221,1885.2,1885.1,5.30475]
[1742314162133,10.43021,1885.2,1885.1,5.30475]
[1742314163195,0.39463812,1885.2,1885.1,5.30475]
[1742314163402,5.268,1885.2,1885.1,5.30475]
[1742314163602,10.03557188,1885.2,1885.1,5.30475]
[1742314164210,10.42841856,1885.2,1885.1,5.30475]
[1742314164935,5.16041856,1885.2,1885.1,5.30475]
[1742314165118,0.39284668,1885.2,1885.1,5.30475]
[1742314165303,10.03457188,1885.3,1885.2,5.30447]
[1742314166607,11.03802907,1885.3,1885.2,5.30447]
[1742314166918,12.80372427,1885.3,1885.2,5.30447]
[1742314167298,11.44512427,1885.3,1885.2,5.30447]
[1742314173837,11.99512427,1885.3,1885.2,5.30447]
[1742314174045,12.78762427,1885.3,1885.2,5.30447]
[1742314174340,0.55,1885.2,1885.1,5.30463]
[1742314174542,1.82876243,1885.2,1885.1,5.30463]
[1742314175817,1.27876243,1885.2,1885.1,5.30463]
[1742314176018,11.78416708,1885.3,1885.2,5.30447]
[1742314176433,11.23416708,1885.3,1885.2,5.30447]
[1742314178213,11.78416708,1885.3,1885.2,5.30447]
[1742314178620,11.78416708,1885.3,1885.1,10.60927]
[1742314178621,0.55,1885.2,1885.1,10.60927]
[1742314178951,0.55,1885.2,1885.1,5.30463]
[1742314179733,1.72841671,1885.2,1885.1,5.30463]
[1742314181937,1.17841671,1885.2,1885.1,5.30463]
[1742314182242,10.44166708,1885.3,1885.2,5.30447]
[1742314182457,5.17466708,1885.3,1885.2,5.30447]
[1742314182615,10.44066708,1885.3,1885.2,5.30447]
[1742314183621,11.52698514,1885.3,1885.2,5.30447]
[1742314183938,12.33008514,1885.3,1885.2,5.30447]
[1742314184119,13.61809365,1885.3,1885.2,5.30447]
[1742314188133,14.16809365,1885.3,1885.2,5.30447]
[1742314188436,14.16809365,1885.3,1885.1,5.30463]
[1742314188642,14.16809365,1885.3,1885.1,9.90017]
[1742314188944,0.55,1885.2,1885.1,9.90016]
[1742314189113,1.96680937,1885.2,1884.8,5.30559]
[1742314189315,1.96680937,1885.2,1885.0,10.60995]
[1742314189559,1.96680937,1885.2,1885.1,5.30475]
[1742314190838,4.76757188,1885.2,1885.1,5.30475]
[1742314191050,10.03357188,1885.2,1885.1,5.30475]
[1742314191214,0.4070952,1885.3,1885.2,5.30447]
[1742314191416,10.03357188,1885.3,1885.2,5.30447]
[1742314192141,10.44188361,1885.3,1885.2,5.30447]
[1742314192939,5.17588361,1885.3,1885.2,5.30447]
[1742314193150,10.44188361,1885.3,1885.2,6.12657]
[1742314194028,10.44188361,1885.3,1885.2,5.30447]
[1742314194224,11.48607197,1885.3,1885.2,5.30447]
[1742314198263,12.31507197,1885.3,1885.2,5.30447]
[1742314199061,11.48607197,1885.3,1885.2,5.30447]
[1742314199366,10.44188361,1885.3,1885.2,5.30447]
[1742314199763,10.99188361,1885.3,1885.1,10.60926]
[1742314200067,1.3611,1885.2,1885.1,10.60926]
[1742314201759,0.55,1885.2,1885.1,10.60926]
[1742314202660,10.44188361,1885.3,1885.1,5.30463]
[1742314202830,10.99188361,1885.3,1885.2,5.30447]
[1742314203237,10.44188361,1885.3,1885.2,5.30447]
[1742314204760,10.44088361,1885.3,1885.2,5.30447]
[1742314205958,5.17588361,1885.3,1885.2,5.30447]
[1742314206136,10.44088361,1885.3,1885.2,5.30447]
[1742314214266,5.17588361,1885.3,1885.2,5.30447]
[1742314214467,10.43988361,1885.3,1885.2,5.30447]
[1742314220972,0.7655,1885.7,1885.6,5.30335]
[1742314221189,10.79607188,1885.7,1885.6,5.30335]
[1742314221683,10.03057188,1885.7,1885.6,5.30335]
[1742314222277,5.263,1886.0,1885.9,5.3025]
[1742314222479,10.03057188,1886.0,1885.9,5.3025]
[1742314222684,1.04656729,1886.1,1886.0,5.30222]
[1742314222988,5.65358759,1886.2,1886.1,5.30194]
[1742314223362,5.15815947,1886.2,1886.1,5.30194]
[1742314223551,10.42115947,1886.2,1886.1,5.30194]
[1742314224469,22.813,1886.4,1886.3,5.30138]
[1742314224676,27.58057188,1886.4,1886.3,5.30138]
[1742314224875,27.97015584,1886.4,1886.3,5.30138]
[1742314225389,0.765,1886.3,1886.1,5.30183]
[1742314225561,0.765,1886.3,1886.2,5.30166]
[1742314225762,6.08257188,1886.3,1886.2,5.30166]
[1742314227082,6.08257188,1886.3,1886.1,5.30182]
[1742314227083,0.55,1886.2,1886.0,5.3021]
[1742314227390,5.31757188,1886.1,1886.0,5.3021]
[1742314228694,5.31757188,1886.1,1885.9,4.99548449]
[1742314228695,0.7933,1886.0,1885.9,4.99548449]
[1742314228871,11.37187188,1886.0,1885.9,4.99548449]
[1742314229066,0.55,1885.9,1885.8,5.30264]
[1742314229260,5.31757188,1885.9,1885.8,5.30264]
[1742314229461,5.31757188,1885.9,1885.7,5.30285]
[1742314229702,5.31757188,1885.8,1885.7,5.30285]
[1742314229902,6.74993381,1885.8,1885.7,5.30307]
[1742314233108,5.94383381,1885.8,1885.7,5.30307]
[1742314233308,4.76757188,1885.8,1885.7,5.30307]
[1742314233519,10.02857188,1885.8,1885.7,5.30307]
[1742314235790,5.65604747,1885.9,1885.8,5.30278]
[1742314236109,10.02857188,1885.9,1885.8,5.30278]
[1742314238014,5.261,1885.9,1885.8,5.30278]
[1742314238183,4.76757188,1886.1,1885.8,10.175065]
[1742314238388,5.26,1886.1,1886.0,5.30216]
[1742314238583,1.48127609,1886.4,1886.2,5.30166]
[1742314238791,0.38958396,1886.4,1886.3,5.30138]
[1742314238990,5.26,1886.4,1886.3,5.30138]
[1742314239294,7.5407,1886.4,1886.3,5.30138]
[1742314239500,2.2807,1886.4,1886.3,5.30138]
[1742314239813,7.5407,1886.4,1886.3,5.30138]
[1742314240013,10.02757188,1886.4,1886.3,5.30138]
[1742314240598,17.547,1886.5,1886.4,5.3011]
[1742314240599,22.31457188,1886.5,1886.4,5.3011]
[1742314240819,27.57457188,1886.5,1886.4,6.0874]
[1742314241017,0.8205,1886.9,1886.7,5.30025]
[1742314241219,4.76757188,1886.9,1886.8,5.29997]
[1742314241400,4.76757188,1887.0,1886.9,5.29957]
[1742314241597,8.69971168,1887.1,1887.0,5.29941]
[1742314241789,13.46728356,1887.1,1887.0,5.29941]
[1742314242118,11.10685356,1887.1,1887.0,5.29941]
[1742314242487,17.546,1887.2,1887.1,5.29913]
[1742314242693,22.31357188,1887.2,1887.1,5.29913]
[1742314246219,22.31357188,1887.2,1887.1,6.06523]
[1742314246419,22.70466258,1887.2,1887.1,6.06523]